fUSD/lending_fUSD_20240215
["ID","MTS","AMOUNT","RATE_DAILY","PERIOD"]
[314162712,1708033848493,-150.0,0.00039556,2]
[314162713,1708033848504,-150.0,0.00039557,2]
[314162714,1708033848513,-200.0,0.00039564,20]
[314162715,1708033848524,-800.0,0.00039566,15]
[314162716,1708033848533,-200.0,0.00039567,20]
[314162717,1708033848543,-800.0,0.0003957,15]
[314162718,1708033848553,-200.0,0.0003957,20]
[314162719,1708033848563,-500.0,0.0003957,20]
[314162720,1708033848572,-150.0,0.00039572,2]
[314162721,1708033848581,-200.0,0.00039573,20]
[314162722,1708033848591,-613.58327499,0.00039575,15]
[314162723,1708033848638,-197.05541301,0.00039178,7]
[314162724,1708033848651,-302.94458699,0.00039178,7]
[314162725,1708033848660,-186.41672501,0.00039575,15]
[314162726,1708033848670,-200.0,0.00039576,20]
[314162727,1708033848679,-200.0,0.00039579,15]
[314162728,1708033848689,-800.0,0.00039579,15]
[314162729,1708033848699,-200.0,0.00039579,20]
[314162730,1708033848708,-500.0,0.00039579,20]
[314162731,1708033848718,-150.0,0.00039589,2]
[314162732,1708033848727,-1870.33,0.0003959,7]
[314162733,1708033848737,-500.46858842,0.0003959,7]
[314162734,1708033848753,-500.0,0.00039452,7]
[314162735,1708033848762,-126.6195556,0.0003959,7]
[314162736,1708033848774,-1243.24185598,0.0003959,7]
[314162737,1708033848784,-150.0,0.00039598,2]
[314162738,1708033848793,-150.0,0.00039612,2]
[314162739,1708033848802,-150.0,0.0003962,2]
[314162740,1708033848812,-150.0,0.00039635,2]
[314162741,1708033848821,-150.0,0.00039638,2]
[314162742,1708033848831,-234.021624,0.00039648,25]
[314162743,1708033848841,-199.83,0.00039648,2]
[314162744,1708033848851,-150.0,0.00039653,2]
[314162745,1708033848861,-150.0,0.00039665,2]
[314162746,1708033848870,-150.0,0.00039672,2]
[314162747,1708033848879,-150.0,0.00039674,2]
[314162748,1708033848888,-150.0,0.00039681,2]
[314162749,1708033848898,-150.0,0.00039692,2]
[314162750,1708033848907,-150.0,0.00039695,2]
[314162751,1708033848922,-431.28176436,0.000397,13]
[314162752,1708033848943,-2530.05024149,0.000397,13]
[314162753,1708033848957,-500.0,0.000397,13]
[314162754,1708033848971,-16899.22766598,0.000397,13]
[314162755,1708033848982,-306.14828674,0.00039702,2]
[314162756,1708033848992,-150.0,0.0003971,2]
[314162757,1708033849002,-150.0,0.00039712,2]
[314162758,1708033849012,-150.0,0.00039718,2]
[314162759,1708033849021,-150.0,0.0003972,2]
[314162760,1708033849031,-500.0,0.00039726,7]
[314162761,1708033849041,-500.0,0.00039726,7]
[314162762,1708033849054,-500.0,0.00039726,7]
[314162763,1708033849065,-500.0,0.00039726,7]
[314162764,1708033849078,-500.0,0.00039726,7]
[314162765,1708033849090,-500.0,0.00039726,7]
[314162766,1708033849101,-500.0,0.00039726,7]
[314162767,1708033849111,-500.0,0.00039726,7]
[314162768,1708033849120,-829.13,0.00039726,7]
[314162769,1708033849131,-748.56,0.00039726,7]
[314162770,1708033849143,-610.08,0.00039726,7]
[314162771,1708033849154,-500.0,0.00039726,7]
[314162772,1708033849165,-319.19506653,0.00039726,7]
[314162773,1708033849178,-547.41,0.00039726,7]
[314162774,1708033849189,-500.0,0.00039726,7]
[314162775,1708033849199,-500.0,0.00039726,7]
[314162776,1708033849209,-2069.36,0.00039726,7]
[314162777,1708033849220,-500.0,0.00039726,7]
[314162778,1708033849233,-750.26,0.00039726,7]
[314162779,1708033849244,-539.01,0.00039726,7]
[314162780,1708033849254,-500.0,0.00039726,7]
[314162781,1708033849265,-500.0,0.00039726,7]
[314162782,1708033849277,-500.0,0.00039726,7]
[314162783,1708033849287,-500.0,0.00039726,7]
[314162784,1708033849297,-500.0,0.00039726,7]
[314162785,1708033849308,-606.86,0.00039726,7]
[314162786,1708033849318,-500.0,0.00039726,7]
[314162787,1708033849328,-1140.56,0.00039726,7]
[314162788,1708033849339,-631.74,0.00039726,7]
[314162789,1708033849352,-507.09,0.00039726,7]
[314162790,1708033849371,-500.0,0.00039726,7]
[314162791,1708033849382,-500.0,0.00039726,7]
[314162792,1708033849393,-507.23,0.00039726,7]
[314162793,1708033849403,-500.0,0.00039726,7]
[314162794,1708033849413,-500.0,0.00039726,7]
[314162795,1708033849424,-280.81776557,0.00039726,7]
[314162796,1708033849438,-1605.99,0.00039726,7]
[314162797,1708033849448,-854.94,0.00039726,7]
[314162798,1708033849465,-735.08,0.00039726,7]
[314162799,1708033849476,-500.0,0.00039726,7]
[314162800,1708033849486,-500.0,0.00039726,7]
[314162801,1708033849497,-709.25,0.00039726,7]
[314162802,1708033849507,-535.93,0.00039726,7]
[314162803,1708033849518,-8241.29,0.00039726,7]
[314162804,1708033849528,-794.94,0.00039726,7]
[314162805,1708033849539,-1318.32,0.00039726,7]
[314162806,1708033849549,-500.0,0.00039726,7]
[314162807,1708033849559,-150.0,0.00039733,2]
[314162808,1708033849569,-150.0,0.00039736,2]
[314162809,1708033849579,-150.0,0.00039742,2]
[314162810,1708033849589,-150.0,0.00039746,2]
[314162811,1708033849599,-234.021624,0.00039748,26]
[314162812,1708033849612,-150.0,0.00039748,2]
[314162813,1708033849622,-150.0,0.0003975,2]
[314162814,1708033849633,-500.0,0.00039763,2]
[314162815,1708033849646,-150.0,0.00039767,2]
[314162816,1708033849656,-150.0,0.00039771,2]
[314162817,1708033849666,-1500.54,0.00039773,2]
[314162818,1708033849676,-150.0,0.00039776,2]
[314162819,1708033849686,-150.0,0.00039793,2]
[314162820,1708033849696,-150.0,0.00039797,2]
[314162821,1708033849706,-3000.0,0.000398,41]
[314162822,1708033849716,-1016.0,0.000398,7]
[314162823,1708033849727,-1500.0,0.00039807,2]
[314162824,1708033849737,-3000.0,0.0003981,41]
[314162825,1708033849747,-150.0,0.00039818,2]
[314162826,1708033849758,-5480.514483,0.0003982,41]
[314162827,1708033849768,-2917.53467992,0.00039835,2]
[314162828,1708033849778,-234.021624,0.00039848,27]
[314162829,1708033849788,-1870.33,0.00039863,7]
[314162830,1708033849798,-1870.33,0.00039863,7]
[314162831,1708033849808,-1500.0,0.00039882,2]
[314162832,1708033849817,-611.8950096,0.00039894,2]
[314162833,1708033849827,-2367.2538044,0.00039894,2]
[314162834,1708033849838,-150.01,0.00039898,2]
[314162835,1708033849848,-3316.12830692,0.00039898,2]
[314162836,1708033849861,-150.0,0.00039898,2]
[314162837,1708033849871,-5000.0,0.00039899,14]
[314162838,1708033849881,-1000.0,0.00039899,14]
[314162839,1708033849891,-456102.674015,0.000399,15]
[314162840,1708033849902,-365.44,0.000399,7]
[314162841,1708033849911,-1363.94451684,0.000399,5]
[314162842,1708033849924,-241.83973937,0.000399,2]
[314162843,1708033849934,-200.0,0.000399,2]
[314162844,1708033849944,-2000.0,0.000399,2]
[314162845,1708033849954,-200.0,0.000399,2]
[314162846,1708033849964,-743.54531023,0.000399,2]
[314162847,1708033849975,-234.021624,0.00039948,24]
[314162848,1708033849985,-174.36,0.00039959,2]
[314162849,1708033849995,-500.0,0.0003996,7]
[314162850,1708033850006,-500.0,0.00039999,31]
[314162851,1708033850016,-500.0,0.00039999,31]
[314162852,1708033850027,-500.0,0.00039999,31]
[314162853,1708033850037,-500.0,0.00039999,31]
[314162854,1708033850048,-500.0,0.00039999,31]
[314162855,1708033850059,-500.0,0.00039999,31]
[314162856,1708033850069,-500.0,0.00039999,31]
[314162857,1708033850080,-500.0,0.00039999,31]
[314162858,1708033850090,-215.49442063,0.00039999,31]
[314162859,1708033850100,-500.0,0.00039999,31]
[314162860,1708033850113,-500.0,0.00039999,31]
[314162861,1708033850123,-500.0,0.00039999,31]
[314162862,1708033850133,-500.0,0.00039999,31]
[314162863,1708033850144,-537.96637823,0.00039999,31]
[314162864,1708033850154,-410.53716556,0.00039999,31]
[314162865,1708033850164,-500.0,0.00039999,31]
[314162866,1708033850175,-500.0,0.00039999,31]
[314162867,1708033850185,-500.0,0.00039999,31]
[314162868,1708033850196,-500.0,0.00039999,31]
[314162869,1708033850206,-500.0,0.00039999,31]
[314162870,1708033850215,-500.0,0.00039999,31]
[314162871,1708033850226,-500.0,0.00039999,31]
[314162872,1708033850236,-500.0,0.00039999,31]
[314162873,1708033850246,-549.45437004,0.00039999,31]
[314162874,1708033850256,-208.39091089,0.00039999,31]
[314162875,1708033850266,-150.0,0.00039999,2]
[314162876,1708033850276,-100000.0,0.0004,30]
[314162877,1708033850285,-227.0,0.0004,2]
[314162878,1708033850296,-99052.5100507,0.0004,30]
[314162879,1708033850306,-187272.39148908,0.0004,30]
[314162880,1708033850349,-150.182,0.00039552,2]
[314162881,1708033850361,-535.72258615,0.00039578,2]
[314162882,1708033850370,-500.0,0.00039726,7]
[314162883,1708033850380,-64312.80278691,0.0004,30]
[314162884,1708033850393,-136517.80081036,0.0004,30]
[314162885,1708033850409,-5139.3556,0.0004,30]
[314162886,1708033850440,-1870.53815802,0.0004,30]
[314162887,1708033850456,-2490.53561742,0.0004,30]
[314162888,1708033850495,-300.22337854,0.0004,30]
[314162889,1708033850510,-516.32058,0.0004,30]
[314162890,1708033850883,-21749.60591112,0.0004,30]
[314162891,1708033850894,-2222.7699996,0.0004,30]
[314162892,1708033850913,-8270.42298324,0.0004,30]
[314162893,1708033850926,-16019.86077433,0.0004,30]
[314162894,1708033850938,-1904.7512084,0.0004,30]
[314162895,1708033850953,-2974.36327104,0.0004,30]
[314162896,1708033850965,-32726.39452113,0.0004,30]
[314162897,1708033850975,-600.0,0.0004,10]
[314162898,1708033850984,-22514.82906487,0.0004,4]
[314162899,1708033850994,-952.89335601,0.0004,4]
[314162900,1708033851003,-590.32348407,0.0004,30]
[314162901,1708033851013,-212.31053572,0.0004,30]
[314162902,1708033851024,-7510.91534184,0.0004,4]
[314162903,1708033851033,-263.48442642,0.0004,14]
[314162904,1708033851042,-4782.21900044,0.0004,2]
[314162905,1708033851069,-612.85068032,0.0004,2]
[314162906,1708033851080,-289.15035342,0.0004,2]
[314162907,1708033851092,-3328.77992622,0.0004,2]
[314162908,1708033851100,-7981.55447041,0.0004,30]
[314162909,1708033851113,-1134.13449414,0.0004,30]
[314162910,1708033851125,-3862.5,0.0004,30]
[314162911,1708033870077,432726.82727001,0.00023,2]
[314162912,1708033870101,456519.84632736,0.00023,2]
[314162913,1708033870535,9395.01105722,0.0002509,2]
[314162914,1708033890560,34085.14261542,0.000281,2]
[314162915,1708033914402,4662.00967049,0.00022789,2]
[314162916,1708033914425,4662.00967049,0.00022789,2]
[314162917,1708033914449,3749.30357956,0.00022789,2]
[314162919,1708033936058,-150.03286709,0.00028,10]
[314162920,1708033936081,-10926.62879357,0.000281,2]
[314162921,1708034053574,150.0,0.00012,30]
[314162922,1708034061716,219.81345003,0.000272,2]
[314162923,1708034065829,5196.57780001,0.00028,2]
[314162924,1708034098819,177.0,0.00028441,2]
[314162925,1708034099047,177.0,0.00027756,2]
[314162930,1708034609904,150.0,0.00025,3]
[314162931,1708034609925,150.0,0.00025,3]
[314162932,1708034609945,259.94251456,0.00025,3]
[314162933,1708034609967,690.05748544,0.00025,3]
[314162964,1708035032063,-227.01520975,0.00029115,2]
[314162967,1708035032073,-212.99891658,0.00029116,2]
[314162969,1708035032082,-472.0,0.0002981,2]
[314162971,1708035032092,-297.17546881,0.000301,2]
[314162973,1708035032102,-228.90090487,0.00032511,2]
[314162975,1708035032113,-461.32909513,0.00032511,2]
[314162977,1708035032122,-205.0,0.00033932,2]
[314162979,1708035032132,-1833.6,0.00034245,2]
[314162981,1708035032141,-2454.47790487,0.00034332,2]
[314162982,1708035032152,-162.38209513,0.00034332,2]
[314162983,1708035032162,-250.0,0.00034332,2]
[314162984,1708035032171,-250.0,0.00034337,2]
[314162986,1708035032181,-150.0,0.00034344,2]
[314162988,1708035032190,-1197.57,0.00034345,2]
[314162990,1708035032199,-200.0,0.00034371,2]
[314162992,1708035032209,-363.5896845,0.00034371,2]
[314162994,1708035032220,-136.4003155,0.00034371,2]
[314162996,1708035032230,-200.0,0.00034401,2]
[314162998,1708035032238,-530.0,0.00034421,2]
[314163000,1708035032247,-41.5396845,0.00034424,2]
[314163028,1708035032452,-221.0603155,0.00034424,2]
[314163031,1708035032461,-1160.3,0.00034466,2]
[314163034,1708035032471,-250.0,0.00034495,111]
[314163037,1708035032480,-4823.1250808,0.000345,2]
[314163040,1708035032490,-150.93,0.00034518,2]
[314163043,1708035032500,-216.36,0.00034521,2]
[314163045,1708035032509,-191.19,0.00034573,2]
[314163047,1708035032518,-1244.37,0.00034716,2]
[314163049,1708035032527,-542.8,0.00034728,2]
[314163051,1708035032536,-1280.41,0.00034745,2]
[314163053,1708035032545,-4096.92412525,0.00034769,10]
[314163055,1708035032554,-690.23,0.00034774,2]
[314163057,1708035032563,-178.21469987,0.00034778,10]
[314163059,1708035032572,-2000.0,0.00034798,2]
[314163061,1708035032581,-1258.93,0.00035066,2]
[314163063,1708035032591,-169.69,0.00035193,2]
[314163065,1708035032601,-171.49,0.00035245,2]
[314163067,1708035032610,-155.0,0.00035472,2]
[314163069,1708035032619,-191.19,0.00035473,2]
[314163071,1708035032629,-5181.97195999,0.00036,10]
[314163073,1708035032638,-5184.57300002,0.00036,2]
[314163075,1708035032647,-165.69,0.00036052,2]
[314163077,1708035032656,-1000.0,0.00036058,2]
[314163079,1708035032665,-205.0,0.00036104,6]
[314163081,1708035032674,-191.0,0.0003623,2]
[314163083,1708035032683,-542.8,0.00036372,2]
[314163086,1708035032693,-64462.4023,0.00036372,2]
[314163088,1708035032713,-191.19,0.00036374,2]
[314163090,1708035032722,-520.42311,0.00036471,2]
[314163093,1708035032733,-2352.36271004,0.00036472,8]
[314163095,1708035032743,-3919.61308012,0.00036472,2]
[314163097,1708035032753,-995.3978,0.00036472,2]
[314163099,1708035032762,-235.5292,0.00036472,2]
[314163101,1708035032771,-2500.0,0.00036472,2]
[314163103,1708035032780,-151.021624,0.00036548,17]
[314163105,1708035032790,-245000.0,0.00036572,2]
[314163107,1708035032799,-155.0,0.00036572,2]
[314163109,1708035032808,-151.021624,0.00036648,18]
[314163111,1708035032819,-151.0,0.00036653,120]
[314163113,1708035032828,-150.0,0.000367,2]
[314163114,1708035032838,-177.34,0.000367,2]
[314163115,1708035032847,-151.021624,0.00036748,18]
[314163116,1708035032858,-2265.66956423,0.000368,2]
[314163117,1708035032867,-157.30314006,0.00036842,2]
[314163118,1708035032877,-151.021624,0.00036848,19]
[314163119,1708035032887,-158.27503926,0.000369,20]
[314163120,1708035032897,-151.021624,0.00036948,19]
[314163121,1708035032906,-169.69,0.00036953,2]
[314163122,1708035032915,-171.49,0.00037007,2]
[314163123,1708035032925,-690.23,0.00037038,2]
[314163124,1708035032934,-151.021624,0.00037048,24]
[314163125,1708035032943,-151.021624,0.00037048,25]
[314163126,1708035032953,-151.021624,0.00037148,24]
[314163127,1708035032962,-151.021624,0.00037148,25]
[314163128,1708035032971,-168.36396027,0.00037166,2]
[314163129,1708035032980,-151.021624,0.00037248,24]
[314163130,1708035032990,-151.021624,0.00037248,25]
[314163131,1708035032999,-353.38,0.00037248,2]
[314163132,1708035033009,-2625.78121208,0.000373,2]
[314163133,1708035033019,-5788.0,0.00037323,2]
[314163134,1708035033030,-151.021624,0.00037348,24]
[314163135,1708035033039,-151.021624,0.00037348,25]
[314163136,1708035033049,-187.81492456,0.0003739,2]
[314163137,1708035033059,-58681.51000309,0.000374,5]
[314163138,1708035033073,-1063.1716106,0.000374,5]
[314163139,1708035033085,-2220.8144468,0.000374,5]
[314163140,1708035033097,-51489.46491628,0.000374,5]
[314163141,1708035033116,-327.57096105,0.000374,5]
[314163142,1708035033134,-1554.18043615,0.000374,5]
[314163143,1708035033148,-8445.46843772,0.000374,5]
[314163146,1708035038093,-2916.38727003,0.000374,5]
[314163147,1708035038105,-1315.81990384,0.000374,5]
[314163148,1708035038121,-771.44744,0.000374,5]
[314163149,1708035038133,-27075.9991937,0.000374,5]
[314163150,1708035038181,-299.2518509,0.000374,5]
[314163151,1708035038243,-161436.01799889,0.000374,5]
[314163152,1708035038253,-500.0,0.000374,2]
[314163153,1708035038262,-151.0,0.00037401,30]
[314163154,1708035038272,-151.021624,0.00037448,25]
[314163155,1708035038281,-446.12718617,0.00037547,2]
[314163156,1708035038290,-151.021624,0.00037548,26]
[314163157,1708035038299,-535.72258615,0.000376,2]
[314163158,1708035038310,-160.35579914,0.00037639,2]
[314163159,1708035038322,-152.0,0.00037642,3]
[314163160,1708035038331,-3919.6130801,0.00037642,2]
[314163161,1708035038340,-163.73518748,0.00037642,10]
[314163162,1708035038350,-165.56669244,0.00037642,2]
[314163163,1708035038363,-2352.36270998,0.00037647,8]
[314163164,1708035038374,-151.021624,0.00037648,27]
[314163165,1708035038385,-20177.2799288,0.00037648,10]
[314163166,1708035038395,-152.97307758,0.00037648,2]
[314163167,1708035038404,-170.94650522,0.00037653,4]
[314163168,1708035038413,-203.08713324,0.00037654,4]
[314163170,1708035038422,-151.61730201,0.0003766,3]
[314163171,1708035038430,-1749.01641731,0.00037667,4]
[314163172,1708035038439,-232383.74896232,0.000377,3]
[314163173,1708035038448,-194872.47328466,0.000377,3]
[314163174,1708035038466,-259686.60519682,0.000377,3]
[314163175,1708035038656,-2992.55013454,0.000377,3]
[314163176,1708035038667,-992.65783246,0.000377,3]
[314163177,1708035038679,-998.04914042,0.000377,3]
[314163178,1708035038690,-3042.45749316,0.000377,3]
[314163181,1708035040631,-352.95730152,0.00034788,10]
[314163182,1708035040640,-35534.72149288,0.000377,3]
[314163183,1708035041327,-612.27748255,0.000377,3]
[314163184,1708035041445,-281.20702602,0.000377,3]
[314163191,1708035043092,-5600.00000004,0.000377,3]
[314163192,1708035043103,-574.14556668,0.000377,3]
[314163193,1708035043150,-47876.57686936,0.000377,3]
[314163194,1708035043159,-151.021624,0.00037748,24]
[314163195,1708035043168,-1071.81,0.00037773,2]
[314163196,1708035043177,-151.18,0.00037779,2]
[314163197,1708035043186,-172.0,0.00037788,7]
[314163198,1708035043196,-5000.0,0.000378,3]
[314163199,1708035043205,-151.021624,0.00037848,25]
[314163200,1708035043214,-558.33999294,0.00037848,2]
[314163201,1708035043223,-2876.16061962,0.00037848,2]
[314163202,1708035043231,-580.19741635,0.00037848,2]
[314163203,1708035043240,-1565.13152278,0.00037848,2]
[314163204,1708035043249,-4823.87210341,0.00037848,2]
[314163205,1708035043259,-152.0,0.00037893,7]
[314163206,1708035043269,-160467.77870279,0.000379,2]
[314163207,1708035043289,-3077.6682786,0.000379,2]
[314163208,1708035043300,-22433.42760846,0.000379,2]
[314163209,1708035043321,-2029.12234471,0.000379,2]
[314163210,1708035043380,-512.81942,0.000379,2]
[314163222,1708035047325,-2679.66724348,0.000379,2]
[314163223,1708035047337,-1237.41832608,0.000379,2]
[314163224,1708035047656,-288.1605948,0.000379,2]
[314163225,1708035047714,-308.97417599,0.000379,2]
[314163226,1708035047832,-1395.95,0.000379,2]
[314163227,1708035047845,-8160.7430423,0.000379,2]
[314163228,1708035047856,-4358.20007664,0.000379,2]
[314163229,1708035047867,-34644.42007198,0.000379,2]
[314163230,1708035047894,-3109.30214082,0.000379,2]
[314163231,1708035047905,-2790.0,0.000379,2]
[314163236,1708035232253,310.0,0.000285,2]
[314163238,1708035869859,-988.32012381,0.00031928,4]
[314163239,1708035869882,-158.91064682,0.0003193,4]
[314163240,1708035869906,-205.0,0.00031932,2]
[314163241,1708035869928,-2156.0,0.000329,2]
[314163242,1708035869951,-624.43,0.00033168,2]
[314163243,1708035869972,-259.75093101,0.00034243,4]
[314163244,1708035869997,-527.72,0.00034245,2]
[314163245,1708035870018,-500.0,0.000344,2]
[314163246,1708035870040,-499.99,0.00034484,2]
[314163247,1708035870065,-205.0,0.00034484,7]
[314163248,1708035870088,-158.22,0.00034521,2]
[314163249,1708035870110,-250.0,0.00034586,2]
[314163250,1708035870132,-150.0,0.00034677,2]
[314163251,1708035870156,-23890.0,0.00034678,2]
[314163252,1708035870180,-33909.52827787,0.00034787,10]
[314163253,1708035870203,-1841.28844106,0.00034787,10]
[314163254,1708035870225,-2000.0,0.00034888,2]
[314163255,1708035870247,-250.0,0.00034899,111]
[314163256,1708035870268,-200.0,0.00035,7]
[314163257,1708035870289,-200.0,0.00035,7]
[314163258,1708035870311,-200.0,0.00035,7]
[314163259,1708035870332,-200.0,0.00035,7]
[314163260,1708035870353,-203.38019493,0.00035,7]
[314163261,1708035870379,-200.0,0.00035,7]
[314163262,1708035870400,-200.0,0.00035,7]
[314163263,1708035870435,2180.73,0.00034389,2]
[314163276,1708036232465,-158.91064682,0.00033279,4]
[314163277,1708036232474,-688.60769733,0.0003328,4]
[314163278,1708036232483,-593.2,0.00033282,2]
[314163279,1708036232492,-250.0,0.00034245,111]
[314163280,1708036232501,-2000.0,0.00035038,2]
[314163281,1708036232510,-1000.0,0.0003521,2]
[314163282,1708036232520,-153.07,0.00035301,2]
[314163283,1708036232529,-163.21302211,0.00035332,2]
[314163285,1708036232538,-462.09903599,0.00035342,7]
[314163287,1708036232548,-4151.46,0.00035342,2]
[314163288,1708036232557,-153.93,0.00035541,2]
[314163290,1708036232565,-593.2,0.00035546,2]
[314163292,1708036232575,-166.14,0.00035624,2]
[314163294,1708036232583,-1049.1,0.00035693,2]
[314163296,1708036232593,-153.93,0.00035738,2]
[314163299,1708036232602,-158.22,0.00035798,2]
[314163301,1708036232611,-163.21302205,0.00035819,2]
[314163303,1708036232621,-527.72,0.00035889,2]
[314163305,1708036232631,-153.93,0.00035935,2]
[314163307,1708036232639,-206.22,0.00036026,2]
[314163308,1708036232649,-206.0,0.00036035,2]
[314163310,1708036232658,-368.2443,0.00036072,2]
[314163312,1708036232667,-86492.6473,0.00036072,2]
[314163314,1708036232676,-312.9244,0.00036072,2]
[314163315,1708036232686,-2450.3078,0.00036072,2]
[314163316,1708036232694,-1096.5218,0.00036072,2]
[314163317,1708036232704,-4037.33018653,0.0003613,2]
[314163318,1708036232713,-51435.46652941,0.0003613,2]
[314163319,1708036232722,-153.93,0.00036133,2]
[314163320,1708036232731,-988.32012381,0.0003617,4]
[314163321,1708036232740,-758.47930316,0.00036172,4]
[314163322,1708036232750,-50637.2825,0.00036172,2]
[314163323,1708036232759,-167.0,0.0003623,2]
[314163324,1708036232768,-2506.27714989,0.00036272,7]
[314163325,1708036232777,-163.21302205,0.00036307,2]
[314163326,1708036232786,-153.93,0.0003633,2]
[314163327,1708036232796,-758.47930315,0.00036372,4]
[314163328,1708036232805,-198.6305,0.00036372,2]
[314163329,1708036232814,-1827.465,0.00036372,2]
[314163330,1708036232823,-32302.6287,0.00036372,2]
[314163331,1708036232832,-100000.0,0.00036372,2]
[314163332,1708036232841,-1000.0,0.00036372,2]
[314163333,1708036232851,-1313.3266,0.00036372,2]
[314163334,1708036232860,-2656.57741144,0.00036428,2]
[314163335,1708036232869,-336.83945975,0.00036462,2]
[314163336,1708036232878,-32105.62122966,0.00036472,2]
[314163337,1708036232891,-322.84270231,0.00036472,2]
[314163338,1708036232902,-833.79793316,0.00036472,2]
[314163339,1708036232914,-1525.80663386,0.00036472,2]
[314163340,1708036232925,-1589.57481014,0.00036472,2]
[314163341,1708036232937,-7228.12288603,0.00036472,2]
[314163342,1708036232948,-929.0145636,0.00036472,2]
[314163343,1708036232959,-5347.79507365,0.00036472,2]
[314163344,1708036232970,-2819.5,0.00036472,2]
[314163345,1708036232982,-16825.50000002,0.00036472,2]
[314163346,1708036232993,-4112.82199917,0.00036472,2]
[314163347,1708036233005,-1571.85804754,0.00036472,2]
[314163348,1708036233016,-284.11769707,0.00036472,2]
[314163349,1708036233027,-1342.52684862,0.00036472,2]
[314163350,1708036233038,-2210.42296953,0.00036472,2]
[314163351,1708036233055,-30351.90102584,0.00036472,2]
[314163352,1708036233067,-2065.45835351,0.00036472,2]
[314163353,1708036238253,-1372.06793841,0.00036472,2]
[314163354,1708036238267,-715.8508933,0.00036472,2]
[314163355,1708036238313,-809.23307081,0.00036472,2]
[314163356,1708036238324,-4128.07968,0.00036472,2]
[314163357,1708036238336,-6366.08558099,0.00036472,2]
[314163358,1708036238347,-391.45736558,0.00036472,2]
[314163359,1708036238359,-119750.5426972,0.00036472,2]
[314163360,1708036238368,-153.93,0.00036528,2]
[314163361,1708036238378,-234.021624,0.00036548,17]
[314163362,1708036238387,-234.021624,0.00036648,17]
[314163363,1708036238396,-153.93,0.00036725,2]
[314163364,1708036238405,-234.021624,0.00036748,17]
[314163365,1708036238414,-163.21302205,0.00036794,2]
[314163366,1708036238423,-234.021624,0.00036848,17]
[314163367,1708036238432,-153.93,0.00036923,2]
[314163368,1708036238441,-234.021624,0.00036948,18]
[314163369,1708036238450,-234.021624,0.00036948,18]
[314163370,1708036238460,-234.021624,0.00036948,18]
[314163371,1708036238469,-361.84787979,0.00037,2]
[314163372,1708036238478,-563.0,0.00037,2]
[314163373,1708036238487,-375.0,0.00037,2]
[314163374,1708036238497,-234.021624,0.00037048,19]
[314163375,1708036238506,-234.021624,0.00037048,19]
[314163376,1708036238515,-234.021624,0.00037048,19]
[314163377,1708036238524,-234.021624,0.00037048,19]
[314163378,1708036238534,-158.22,0.00037075,2]
[314163379,1708036238543,-156.1,0.00037076,2]
[314163380,1708036238553,-153.93,0.0003712,2]
[314163381,1708036238562,-165.72,0.00037135,2]
[314163382,1708036238571,-151.021624,0.00037148,24]
[314163383,1708036238581,-234.021624,0.00037148,24]
[314163385,1708036238590,-234.021624,0.00037148,24]
[314163386,1708036238599,-171.021624,0.00037148,24]
[314163388,1708036238608,-164.021624,0.00037148,24]
[314163390,1708036238617,-151.021624,0.00037248,25]
[314163392,1708036238626,-151.021624,0.00037248,25]
[314163394,1708036238635,-151.021624,0.00037248,25]
[314163396,1708036238644,-151.021624,0.00037248,25]